{"text_format":"3","workbook":"xlsx","n_sheets":3,"sheets":["汇总","B1户型","B2户型"],"read":"whole","date_system":"1900"}

{"sheet":"汇总","index":0,"n_rows":5,"n_cols":3,"rows_kept":5,"merged":[[0,0,0,2]]}
["乐业公寓固定家具采购及安装项目清单"]
["项目","金额（元）","备注"]
["B1户型",{"$f":"B1户型!H23","v":0}]
["B2户型",{"$f":"B2户型!H19","v":0}]
["合计",{"$f":"B3+B4","v":0}]

{"sheet":"B1户型","index":1,"n_rows":24,"n_cols":9,"rows_kept":24,"merged":[[0,0,0,8],[6,0,8,0],[6,1,8,1],[6,3,8,3],[6,4,8,4],[6,5,8,5],[6,6,8,6],[6,7,8,7],[6,8,8,8],[10,0,12,0],[10,1,12,1],[10,3,12,3],[10,4,12,4],[10,5,12,5],[10,6,12,6],[10,7,12,7],[10,8,12,8],[13,0,14,0],[13,1,14,1],[13,3,14,3],[15,0,18,0],[15,1,18,1],[15,3,18,3],[21,0,22,0],[21,1,21,3],[22,1,22,3],[23,0,23,8]]}
["乐业公寓固定家具清单"]
["序号","名称","规格","材质说明","单位","数量","单价","总价","备注"]
[1,"木饰面","客厅木饰面W1600*D12*H2500","1、贴面用材：优质一级0.6mm厚天然木皮贴面，经过防虫防腐处理，耐磨性好，纹理清晰自然，色泽一致，实木封边。\n2、基材：15mm厚优质环保实木多层板，经过耐酸碱、 防虫、防腐处理，含水率达到国家标准，抗弯力强，不易变形。各种物理、化学性能指标均达到国家相关标准。\n3、油漆：优质水性油漆（大宝漆），要求甲醛含量达到国家标准；引用先进油漆工艺，五底三面，透明度高、附着力强，涂层亮度均匀不褪色，色泽柔和，手感良好。","平米",4,null,{"$f":"F3*G3","v":0},"实际数量以现场最终核量为准"]
[2,"书柜","W2000*D400*H2350","11、门板+见光面：实木多层贴面（优质一级0.6mm厚天然木皮贴面，经过防虫防腐处理，耐磨性好，纹理清晰自然，色泽一致。\n2、柜体：18mm厚实木多层免漆板。\n3、油漆：优质大宝水性油漆，引用先进油漆工艺，五底三面，透明度高、附着力强，涂层亮度均匀不褪色，色泽柔和，手感良好。                            4、五金品牌：百隆（BLUM）或海福乐","组",1,null,{"$f":"F4*G4","v":0}]
[3,"入户鞋柜","W860*D300*H2080","1、门板+见光面：实木多层贴面（优质一级0.6mm厚天然木皮贴面，经过防虫防腐处理，耐磨性好，纹理清晰自然，色泽一致，实木封边）。\n2、柜体：18mm厚实木多层免漆板。\n3、油漆：优质大宝水性油漆，引用先进油漆工艺，五底三面，透明度高、附着力强，涂层亮度均匀不褪色，色泽柔和，手感良好。                            4、五金品牌：百隆（BLUM）或海福乐 5、含LED感应灯带","组",1,null,{"$f":"F5*G5","v":0}]
[4,"阳台柜","地柜：W1730*D600*H900                             吊柜：W1730*D400*H1100","1、门板+见光面：实木多层贴面（优质一级0.6mm厚天然木皮贴面，经过防虫防腐处理，耐磨性好，纹理清晰自然，色泽一致，实木封边）。\n2、柜体：18mm厚实木多层免漆板。\n3、油漆：优质大宝水性油漆，引用先进油漆工艺，五底三面，透明度高、附着力强，涂层亮度均匀不褪色，色泽柔和，手感良好。                            4、五金品牌：百隆（BLUM）或海福乐 5、含石英石台面、水盆*1个、水龙头*1个\n","组",1,null,{"$f":"F6*G6","v":0}]
[5,"室内木门","主卧W910*H2120        ","1、贴面用材：优质一级0.6mm厚天然木皮贴面，经过防虫防腐处理，耐磨性好，纹理清晰自然，色泽一致，实木封边。大宝漆\n2、基材：优质环保实木多层板，经过耐酸碱、防虫、防腐处理，含水率达到国家标准，抗弯力强，不易变形。各种物理、化学性能指标均达到国家相关标准。\n\n","樘",3,null,{"$f":"F7*G7","v":0}]
[null,null,"次卧W910*H2120         "]
[null,null,"书房W910*H2120"]
[6,"五金",null,"含门锁（坚朗）、门吸（坚朗）、合页","套",6,null,{"$f":"F10*G10","v":0}]
[7,"室内木框玻璃门","厨房W910*H2120        ","1、边框贴面用材：优质一级0.6mm厚天然木皮贴面，经过防虫防腐处理，耐磨性好，纹理清晰自然，色泽一致，实木封边。大宝漆\n2、基材：优质环保实木多层板，经过耐酸碱、防虫、防腐处理，含水率达到国家标准，抗弯力强，不易变形。各种物理、化学性能指标均达到国家相关标准。\n3、内置5mm钢化玻璃\n","樘",3,null,{"$f":"F11*G11","v":0}]
[null,null,"卫生间W910*H2120         "]
[null,null,"主卧卫生间W910*H2120"]
[8,"窗套","书房窗套W1740*D100*H1800","1、贴面用材：优质一级0.6mm厚天然木皮贴面，经过防虫防腐处理，耐磨性好，纹理清晰自然，色泽一致，大宝漆。\n2、基材：优质环保实木多层板，经过耐酸碱、防虫、防腐处理，含水率达到国家标准，抗弯力强，不易变形。各种物理、化学性能指标均达到国家相关标准。 ","套",1,null,{"$f":"F14*G14","v":0}]
[null,null,"次卧飘窗W1820*D520*H2520",null,"套",1,null,0]
[9,"垭口","入户半垭口W1130*H2120","1、贴面用材：优质一级0.6mm厚天然木皮贴面，经过防虫防腐处理，耐磨性好，纹理清晰自然，色泽一致，大宝漆。\n2、基材：优质环保实木多层板，经过耐酸碱、防虫、防腐处理，含水率达到国家标准，抗弯力强，不易变形。各种物理、化学性能指标均达到国家相关标准。                       \n","套",1,null,0]
[null,null,"卫生间双包垭口W930*H2150",null,"套",1,null,0]
[null,null,"客厅阳台半垭口W2500*H2500",null,"套",1,null,0]
[null,null,"主卧阳台半垭口W2200*H2500",null,"套",1,null,0]
[10,"衣柜推拉门","次卧推拉门W2120*H2170","1、门框料为中幕铝材推拉门专用\n2、滑轮为欧派克铝框推拉门专用静音款\n3、门芯材质为E0+环保等级实木多层板\n（注：本厂家只提供更换的推拉门安装及调试，如原有衣柜空间不水平或者变型导致推拉门无法安装到位，本厂家无须负责）","平米",4.6,null,0,"实际数量以现场最终核量为准"]
[11,"衣柜推拉门","主卧推拉门W1750*2170","1、门框料为中幕铝材推拉门专用\n2、滑轮为欧派克铝框推拉门专用静音款\n3、门芯材质为E0+环保等级实木多层板\n（注：本厂家只提供更换的推拉门安装及调试，如原有衣柜空间不水平或者变型导致推拉门无法安装到位，本厂家无须负责）","平米",3.8,null,0,"实际数量以现场最终核量为准"]
[12,"合计",{"$nulls":5},{"$f":"SUM(H3:H21)","v":0}]
[null,"总计",null,null,"套",50,null,{"$f":"H22*F23","v":0}]
["此清单包含加工，运输，安装，13%税。"]

{"sheet":"B2户型","index":2,"n_rows":20,"n_cols":9,"rows_kept":20,"merged":[[0,0,0,8],[3,0,5,0],[3,1,5,1],[3,3,5,3],[3,4,5,4],[3,5,5,5],[3,6,5,6],[3,7,5,7],[3,8,5,8],[7,0,8,0],[7,1,8,1],[7,3,8,3],[7,4,8,4],[7,5,8,5],[7,6,8,6],[7,7,8,7],[7,8,8,8],[9,0,11,0],[9,1,11,1],[9,3,11,3],[12,0,13,0],[12,1,13,1],[12,3,13,3],[17,0,18,0],[17,1,17,3],[18,1,18,3],[19,0,19,8]]}
["乐业公寓固定家具清单"]
["序号","名称","规格","材质说明","单位","数量","单价","总价","备注"]
[1,"书房书柜","W1970*D400*H2350","11、门板+见光面：实木多层贴面（优质一级0.6mm厚天然木皮贴面，经过防虫防腐处理，耐磨性好，纹理清晰自然，色泽一致。\n2、柜体：18mm厚实木多层免漆板。\n3、油漆：优质大宝水性油漆，引用先进油漆工艺，五底三面，透明度高、附着力强，涂层亮度均匀不褪色，色泽柔和，手感良好。                            4、五金品牌：百隆（BLUM）或海福乐","组",1,null,{"$f":"F3*G3","v":0}]
[2,"室内门","主卧W910*H2120        ","1、贴面用材：优质一级0.6mm厚天然木皮贴面，经过防虫防腐处理，耐磨性好，纹理清晰自然，色泽一致，实木封边。大宝漆\n2、基材：优质环保实木多层板，经过耐酸碱、防虫、防腐处理，含水率达到国家标准，抗弯力强，不易变形。各种物理、化学性能指标均达到国家相关标准。\n\n","樘",3,null,{"$f":"F4*G4","v":0}]
[null,null,"次卧W910*H2120         "]
[null,null,"书房W910*H2120"]
[3,"五金",null,"含门锁（坚朗）、门吸（坚朗）、合页","套",5,null,{"$f":"F7*G7","v":0}]
[4,"室内木框玻璃门","厨房W910*H2120 ","1、边框贴面用材：优质一级0.6mm厚天然木皮贴面，经过防虫防腐处理，耐磨性好，纹理清晰自然，色泽一致，实木封边。大宝漆。\n2、基材：优质环保实木多层板，经过耐酸碱、防虫、防腐处理，含水率达到国家标准，抗弯力强，不易变形。各种物理、化学性能指标均达到国家相关标准。\n3、内置5mm钢化玻璃\n","樘",2,null,{"$f":"F8*G8","v":0}]
[null,null,"卫生间W910*H2120         "]
[5,"窗套","主卧窗套W2250*D100*H1800","1、贴面用材：优质一级0.6mm厚天然木皮贴面，经过防虫防腐处理，耐磨性好，纹理清晰自然，色泽一致，实木封边。\n2、基材：厚优质环保实木多层板，经过耐酸碱、 防虫、防腐处理，含水率达到国家标准，抗弯力强，不易变形。各种物理、化学性能指标均达到国家相关标准。\n3、油漆：优质水性油漆（大宝漆），要求甲醛含量达到国家标准；引用先进油漆工艺，五底三面，透明度高、附着力强，涂层亮度均匀不褪色，色泽柔和，手感良好。","套",1,null,{"$f":"F10*G10","v":0}]
[null,null,"书房窗套W1410*D100*H1600",null,"套",1,null,0]
[null,null,"次卧窗套W1800*D100*H1800",null,"套",1,null,0]
[6,"垭口","阳台半垭口W2450*D60*H2470","1、贴面用材：优质一级0.6mm厚天然木皮贴面，经过防虫防腐处理，耐磨性好，纹理清晰自然，色泽一致，实木封边。\n2、基材：厚优质环保实木多层板，经过耐酸碱、 防虫、防腐处理，含水率达到国家标准，抗弯力强，不易变形。各种物理、化学性能指标均达到国家相关标准。\n3、油漆：优质水性油漆，引用先进油漆工艺，五底三面，透明度高、附着力强，涂层亮度均匀不褪色，色泽柔和，手感良好。                            \n","套",1,null,0]
[null,null,"入户半垭口W1150*D160*H2120",null,"套",1,null,0]
[7,"走廊柜更换门板","W940*D18*H2340","1、门板+见光面：实木多层贴面（优质一级0.6mm厚天然木皮贴面，经过防虫防腐处理，耐磨性好，纹理清晰自然，色泽一致，实木封边）。\n2、柜体：18mm厚实木多层免漆板。\n3、油漆：优质大宝水性油漆，引用先进油漆工艺，五底三面，透明度高、附着力强，涂层亮度均匀不褪色，色泽柔和，手感良好。                            4、五金品牌：百隆（BLUM）或海福乐 \n5、含铝型材扣手","组",1,null,0,"    "]
[8,"衣柜推拉门","次卧推拉门W1820*H2170","1、门框料为中幕铝材推拉门专用\n2、滑轮为欧派克铝框推拉门专用静音款\n3、门芯材质为E0+环保等级实木多层板\n（注：本厂家只提供更换的推拉门安装及调试，如原有衣柜空间不水平或者变型导致推拉门无法安装到位，本厂家无须负责）","平米",3.95,null,0,"实际数量以现场最终核量为准"]
[9,"衣柜推拉门","主卧推拉门W1475*2170","1、门框料为中幕铝材推拉门专用\n2、滑轮为欧派克铝框推拉门专用静音款\n3、门芯材质为E0+环保等级实木多层板\n（注：本厂家只提供更换的推拉门安装及调试，如原有衣柜空间不水平或者变型导致推拉门无法安装到位，本厂家无须负责）","平米",3.2,null,0,"实际数量以现场最终核量为准"]
[10,"合计",{"$nulls":5},{"$f":"SUM(H3:H17)","v":0}]
[null,"总计",null,null,"套",50,null,{"$f":"H18*F19","v":0}]
["此清单包含加工，运输，安装，13%税。"]